[Event "Titled Tuesday Blitz May 03 Late 2022"]
[White "Skliarov, Viktor"]
[Black "Yuan, Qingyu"]
[WhiteFideId "14106736"]
[BlackFideId "8609772"]
[WhiteElo "2229"]
[BlackElo "2359"]
[Result "0-1"]
[Round "08"]
[TimeControl "180+1"]
[Date "2022.05.03"]
[WhiteClock "0:00:02"]
[BlackClock "0:00:27"]

1. e4 {[%clk 0:02:59]}  c6 {[%clk 0:03:00]} 2. d4 {[%clk 0:02:58]}  d5 {[%clk 0:03:01]} 3. e5 {[%clk 0:02:58]}  c5 {[%clk 0:03:01]} 4. dxc5 {[%clk 0:02:58]}  e6 {[%clk 0:03:02]} 5. a3 {[%clk 0:02:58]}  Bxc5 {[%clk 0:03:02]} 6. b4 {[%clk 0:02:59]}  Be7 {[%clk 0:03:02]} 7. Bb2 {[%clk 0:02:59]}  f6 {[%clk 0:03:01]} 8. Nf3 {[%clk 0:02:59]}  a5 {[%clk 0:03:01]} 9. b5 {[%clk 0:02:58]}  Nd7 {[%clk 0:03:02]} 10. c4 {[%clk 0:02:47]}  Nxe5 {[%clk 0:03:02]} 11. Nxe5 {[%clk 0:02:47]}  fxe5 {[%clk 0:03:03]} 12. Bxe5 {[%clk 0:02:43]}  Nf6 {[%clk 0:02:57]} 13. cxd5 {[%clk 0:02:39]}  Qxd5 {[%clk 0:02:49]} 14. Qxd5 {[%clk 0:02:38]}  exd5 {[%clk 0:02:50]} 15. Nc3 {[%clk 0:02:21]}  Be6 {[%clk 0:02:44]} 16. Be2 {[%clk 0:02:17]}  O-O {[%clk 0:02:38]} 17. O-O {[%clk 0:02:15]}  Rac8 {[%clk 0:02:26]} 18. Rfd1 {[%clk 0:01:58]}  Rfd8 {[%clk 0:01:50]} 19. Bf3 {[%clk 0:01:47]}  b6 {[%clk 0:01:37]} 20. a4 {[%clk 0:01:04]}  d4 {[%clk 0:01:17]} 21. Rxd4 {[%clk 0:00:58]}  Nd7 {[%clk 0:01:12]} 22. Bd5 {[%clk 0:00:19]}  Bxd5 {[%clk 0:01:05]} 23. Nxd5 {[%clk 0:00:18]}  Bc5 {[%clk 0:00:59]} 24. Re4 {[%clk 0:00:18]}  Nxe5 {[%clk 0:00:43]} 25. Rxe5 {[%clk 0:00:19]}  Bd4 {[%clk 0:00:43]} 26. Ne7+ {[%clk 0:00:18]}  Kf7 {[%clk 0:00:29]} 27. Nxc8 {[%clk 0:00:14]}  Bxa1 {[%clk 0:00:27]} 28. Re1 {[%clk 0:00:02]}  Bc3 {[%clk 0:00:27]} 29. Rc1 {[%clk 0:00:02]}  Rxc8 {[%clk 0:00:27]} 30. g3 {[%clk 0:00:02]}  Rc5 {[%clk 0:00:27]} 31. Kg2 {[%clk 0:00:02]}  Bd4 {[%clk 0:00:26]} 32. Rd1 {[%clk 0:00:02]}  Rc4 {[%clk 0:00:27]} 0-1


[Site "https://www.chess.com"]

[Event "Titled Tuesday Blitz May 03 Late 2022"]
[White "Sliwicki, Damian"]
[Black "Kim, Sergey"]
[WhiteFideId "1127128"]
[BlackFideId "13700570"]
[WhiteElo "2125"]
[BlackElo "2528"]
[Result "1-0"]
[Round "08"]
[TimeControl "180+1"]
[Date "2022.05.03"]
[WhiteClock "0:00:06"]
[BlackClock "0:00:01"]

1. e4 {[%clk 0:03:00]}  e5 {[%clk 0:03:00]} 2. Nf3 {[%clk 0:03:00]}  Nc6 {[%clk 0:03:00]} 3. d4 {[%clk 0:02:58]}  exd4 {[%clk 0:03:00]} 4. Bc4 {[%clk 0:02:59]}  Nf6 {[%clk 0:02:59]} 5. O-O {[%clk 0:02:56]}  Nxe4 {[%clk 0:02:59]} 6. Nc3 {[%clk 0:02:56]}  Nxc3 {[%clk 0:02:56]} 7. bxc3 {[%clk 0:02:56]}  d5 {[%clk 0:02:56]} 8. Bb5 {[%clk 0:02:56]}  Be7 {[%clk 0:02:56]} 9. Ne5 {[%clk 0:02:43]}  O-O {[%clk 0:02:45]} 10. Bxc6 {[%clk 0:02:19]}  bxc6 {[%clk 0:02:45]} 11. Nxc6 {[%clk 0:02:16]}  Qd6 {[%clk 0:02:39]} 12. Nxe7+ {[%clk 0:02:16]}  Qxe7 {[%clk 0:02:39]} 13. cxd4 {[%clk 0:02:17]}  Bf5 {[%clk 0:02:30]} 14. Qf3 {[%clk 0:02:12]}  Be4 {[%clk 0:02:26]} 15. Qg3 {[%clk 0:02:12]}  Qd7 {[%clk 0:02:20]} 16. c3 {[%clk 0:02:03]}  Rfe8 {[%clk 0:02:19]} 17. Bf4 {[%clk 0:01:56]}  Re6 {[%clk 0:02:18]} 18. f3 {[%clk 0:01:53]}  Rg6 {[%clk 0:02:17]} 19. Qf2 {[%clk 0:01:49]}  Bf5 {[%clk 0:02:17]} 20. Rfe1 {[%clk 0:01:46]}  h5 {[%clk 0:02:15]} 21. Re5 {[%clk 0:01:30]}  f6 {[%clk 0:02:09]} 22. Re2 {[%clk 0:01:28]}  Bh3 {[%clk 0:01:52]} 23. Qh4 {[%clk 0:01:20]}  Qf5 {[%clk 0:01:13]} 24. Rae1 {[%clk 0:01:14]}  Rb8 {[%clk 0:01:06]} 25. Bg3 {[%clk 0:00:58]}  Bxg2 {[%clk 0:00:56]} 26. Kxg2 {[%clk 0:00:57]}  Kh7 {[%clk 0:00:54]} 27. Qh3 {[%clk 0:00:42]}  Qg5 {[%clk 0:00:49]} 28. f4 {[%clk 0:00:36]}  Qg4 {[%clk 0:00:45]} 29. Qxg4 {[%clk 0:00:36]}  Rxg4 {[%clk 0:00:46]} 30. Re7 {[%clk 0:00:27]}  Kg6 {[%clk 0:00:40]} 31. Rxc7 {[%clk 0:00:22]}  h4 {[%clk 0:00:27]} 32. Kf3 {[%clk 0:00:21]}  f5 {[%clk 0:00:25]} 33. Re6+ {[%clk 0:00:16]}  Kh5 {[%clk 0:00:22]} 34. Bf2 {[%clk 0:00:15]}  Rb2 {[%clk 0:00:20]} 35. Rf7 {[%clk 0:00:12]}  Rg6 {[%clk 0:00:07]} 36. Rxf5+ {[%clk 0:00:11]}  Kh6 {[%clk 0:00:08]} 37. Rxg6+ {[%clk 0:00:10]}  Kxg6 {[%clk 0:00:08]} 38. Rxd5 {[%clk 0:00:10]}  Rxa2 {[%clk 0:00:07]} 39. Bxh4 {[%clk 0:00:09]}  Kf7 {[%clk 0:00:07]} 40. Bg3 {[%clk 0:00:09]}  Ke6 {[%clk 0:00:07]} 41. Re5+ {[%clk 0:00:09]}  Kd6 {[%clk 0:00:07]} 42. f5 {[%clk 0:00:10]}  Kd7 {[%clk 0:00:07]} 43. Rd5+ {[%clk 0:00:09]}  Kc6 {[%clk 0:00:07]} 44. Rc5+ {[%clk 0:00:09]}  Kd7 {[%clk 0:00:07]} 45. Rc7+ {[%clk 0:00:09]}  Ke8 {[%clk 0:00:07]} 46. Rxg7 {[%clk 0:00:10]}  a5 {[%clk 0:00:07]} 47. f6 {[%clk 0:00:10]}  a4 {[%clk 0:00:08]} 48. Be5 {[%clk 0:00:09]}  a3 {[%clk 0:00:09]} 49. Re7+ {[%clk 0:00:08]}  Kf8 {[%clk 0:00:09]} 50. Ra7 {[%clk 0:00:09]}  Rxh2 {[%clk 0:00:06]} 51. f7 {[%clk 0:00:09]}  Rh6 {[%clk 0:00:01]} 52. Rxa3 {[%clk 0:00:06]} 1-0


[Site "https://www.chess.com"]

[Event "Titled Tuesday Blitz May 03 Late 2022"]
[White "Sokolovsky, Yahli"]
[Black "Petrovic, Aleksa"]
[WhiteFideId "2820242"]
[BlackFideId "967629"]
[WhiteElo "1770"]
[BlackElo "2144"]
[Result "1-0"]
[Round "08"]
[TimeControl "180+1"]
[Date "2022.05.03"]
[WhiteClock "0:00:40"]
[BlackClock "0:01:11"]

1. b3 {[%clk 0:03:00]}  e5 {[%clk 0:02:59]} 2. Bb2 {[%clk 0:03:01]}  Nc6 {[%clk 0:02:59]} 3. e3 {[%clk 0:03:01]}  Nh6 {[%clk 0:02:59]} 4. d4 {[%clk 0:02:51]}  exd4 {[%clk 0:02:50]} 5. exd4 {[%clk 0:02:52]}  Bb4+ {[%clk 0:02:50]} 6. c3 {[%clk 0:02:51]}  Bd6 {[%clk 0:02:48]} 7. Nf3 {[%clk 0:02:40]}  O-O {[%clk 0:02:47]} 8. Be2 {[%clk 0:02:40]}  Re8 {[%clk 0:02:44]} 9. O-O {[%clk 0:02:40]}  Qe7 {[%clk 0:02:44]} 10. Re1 {[%clk 0:02:38]}  Qf8 {[%clk 0:02:45]} 11. Nbd2 {[%clk 0:02:34]}  b6 {[%clk 0:02:42]} 12. Nc4 {[%clk 0:02:28]}  Be7 {[%clk 0:02:42]} 13. d5 {[%clk 0:02:26]}  Nd8 {[%clk 0:02:40]} 14. Bd3 {[%clk 0:02:15]}  Nb7 {[%clk 0:02:26]} 15. Qc2 {[%clk 0:01:35]}  g6 {[%clk 0:02:25]} 16. Nce5 {[%clk 0:01:30]}  Bf6 {[%clk 0:02:10]} 17. c4 {[%clk 0:01:25]}  Qg7 {[%clk 0:02:01]} 18. Ng4 {[%clk 0:01:10]}  Rxe1+ {[%clk 0:01:44]} 19. Rxe1 {[%clk 0:01:11]}  Nxg4 {[%clk 0:01:26]} 20. Re8+ {[%clk 0:01:10]}  Qf8 {[%clk 0:01:26]} 21. Rxf8+ {[%clk 0:01:11]}  Kxf8 {[%clk 0:01:27]} 22. h3 {[%clk 0:01:06]}  Bxb2 {[%clk 0:01:23]} 23. Qxb2 {[%clk 0:01:07]}  Nh6 {[%clk 0:01:21]} 24. Qh8+ {[%clk 0:01:08]}  Ke7 {[%clk 0:01:21]} 25. Qxh7 {[%clk 0:00:57]}  Nf5 {[%clk 0:01:20]} 26. Bxf5 {[%clk 0:00:56]}  gxf5 {[%clk 0:01:21]} 27. Qxf5 {[%clk 0:00:51]}  d6 {[%clk 0:01:19]} 28. Qg5+ {[%clk 0:00:51]}  Kf8 {[%clk 0:01:18]} 29. Qh6+ {[%clk 0:00:52]}  Ke8 {[%clk 0:01:16]} 30. Nd4 {[%clk 0:00:47]}  Nc5 {[%clk 0:01:13]} 31. Qh8+ {[%clk 0:00:40]}  Ke7 {[%clk 0:01:11]} 32. Nc6+ {[%clk 0:00:40]} 1-0


[Site "https://www.chess.com"]

[Event "Titled Tuesday Blitz May 03 Late 2022"]
[White "Stojanovski, Sandi"]
[Black "Sernecki, Franciszek"]
[WhiteFideId "1403249"]
[BlackFideId "1169297"]
[WhiteElo "2294"]
[BlackElo "2189"]
[Result "0-1"]
[Round "08"]
[TimeControl "180+1"]
[Date "2022.05.03"]
[WhiteClock "0:00:05"]
[BlackClock "0:00:10"]

1. d3 {[%clk 0:02:58]}  Nf6 {[%clk 0:02:45]} 2. Nf3 {[%clk 0:02:58]}  d5 {[%clk 0:02:45]} 3. g3 {[%clk 0:02:59]}  e6 {[%clk 0:02:44]} 4. Bg2 {[%clk 0:02:59]}  c5 {[%clk 0:02:45]} 5. O-O {[%clk 0:03:00]}  Be7 {[%clk 0:02:44]} 6. c4 {[%clk 0:03:00]}  Nc6 {[%clk 0:02:43]} 7. Bf4 {[%clk 0:02:59]}  O-O {[%clk 0:02:41]} 8. Ne5 {[%clk 0:02:59]}  Bd6 {[%clk 0:02:22]} 9. Nxc6 {[%clk 0:02:58]}  bxc6 {[%clk 0:02:23]} 10. Bxd6 {[%clk 0:02:39]}  Qxd6 {[%clk 0:02:23]} 11. Nc3 {[%clk 0:02:38]}  Rb8 {[%clk 0:02:14]} 12. b3 {[%clk 0:02:37]}  Nd7 {[%clk 0:01:52]} 13. e4 {[%clk 0:02:25]}  Bb7 {[%clk 0:01:35]} 14. exd5 {[%clk 0:01:27]}  cxd5 {[%clk 0:01:34]} 15. cxd5 {[%clk 0:01:28]}  exd5 {[%clk 0:01:29]} 16. d4 {[%clk 0:01:27]}  c4 {[%clk 0:01:28]} 17. Rb1 {[%clk 0:01:07]}  Nb6 {[%clk 0:01:21]} 18. b4 {[%clk 0:01:07]}  Bc6 {[%clk 0:01:06]} 19. a4 {[%clk 0:01:05]}  Rfe8 {[%clk 0:00:57]} 20. b5 {[%clk 0:01:04]}  Ba8 {[%clk 0:00:57]} 21. a5 {[%clk 0:01:03]}  Nd7 {[%clk 0:00:56]} 22. Re1 {[%clk 0:00:46]}  Qa3 {[%clk 0:00:53]} 23. Nxd5 {[%clk 0:00:16]}  Qxa5 {[%clk 0:00:47]} 24. Ne7+ {[%clk 0:00:13]}  Kf8 {[%clk 0:00:42]} 25. Bxa8 {[%clk 0:00:07]}  Rxa8 {[%clk 0:00:36]} 26. Nc6 {[%clk 0:00:07]}  Rxe1+ {[%clk 0:00:35]} 27. Qxe1 {[%clk 0:00:08]}  Qxe1+ {[%clk 0:00:36]} 28. Rxe1 {[%clk 0:00:08]}  Nb6 {[%clk 0:00:23]} 29. Ra1 {[%clk 0:00:07]}  Ke8 {[%clk 0:00:18]} 30. Kf1 {[%clk 0:00:07]}  Kd7 {[%clk 0:00:18]} 31. Rxa7+ {[%clk 0:00:04]}  Rxa7 {[%clk 0:00:14]} 32. Nxa7 {[%clk 0:00:04]}  Kd6 {[%clk 0:00:14]} 33. Ke2 {[%clk 0:00:04]}  Kd5 {[%clk 0:00:13]} 34. Nc6 {[%clk 0:00:04]}  Nd7 {[%clk 0:00:11]} 35. Kd2 {[%clk 0:00:04]}  Ke4 {[%clk 0:00:10]} 36. Kc3 {[%clk 0:00:04]}  Nb6 {[%clk 0:00:10]} 37. Nb4 {[%clk 0:00:03]}  f6 {[%clk 0:00:08]} 38. d5 {[%clk 0:00:03]}  Ke5 {[%clk 0:00:08]} 39. f4+ {[%clk 0:00:02]}  Kd6 {[%clk 0:00:08]} 40. Kd4 {[%clk 0:00:03]}  f5 {[%clk 0:00:07]} 41. Nc2 {[%clk 0:00:03]}  Nxd5 {[%clk 0:00:07]} 42. Ne3 {[%clk 0:00:03]}  Nxe3 {[%clk 0:00:07]} 43. Kxe3 {[%clk 0:00:04]}  Kc5 {[%clk 0:00:07]} 44. b6 {[%clk 0:00:04]}  Kxb6 {[%clk 0:00:08]} 45. Kd4 {[%clk 0:00:04]}  Kb5 {[%clk 0:00:08]} 46. h3 {[%clk 0:00:04]}  Kb4 {[%clk 0:00:08]} 47. Ke5 {[%clk 0:00:04]}  c3 {[%clk 0:00:09]} 48. g4 {[%clk 0:00:05]}  c2 {[%clk 0:00:10]} 0-1


[Site "https://www.chess.com"]

[Event "Titled Tuesday Blitz May 03 Late 2022"]
[White "Tanenbaum, Zachary"]
[Black "Karttunen, Mika"]
[WhiteFideId "2060850"]
[BlackFideId "502081"]
[WhiteElo "2168"]
[BlackElo "2343"]
[Result "1-0"]
[Round "08"]
[TimeControl "180+1"]
[Date "2022.05.03"]
[WhiteClock "0:00:04"]
[BlackClock "0:00:12"]

1. e4 {[%clk 0:02:59]}  e6 {[%clk 0:03:00]} 2. d4 {[%clk 0:03:00]}  d5 {[%clk 0:02:59]} 3. Nc3 {[%clk 0:03:01]}  Bb4 {[%clk 0:02:58]} 4. exd5 {[%clk 0:03:01]}  exd5 {[%clk 0:02:57]} 5. Bd3 {[%clk 0:03:00]}  Nc6 {[%clk 0:02:56]} 6. a3 {[%clk 0:03:00]}  Bxc3+ {[%clk 0:02:54]} 7. bxc3 {[%clk 0:03:01]}  Be6 {[%clk 0:02:54]} 8. Rb1 {[%clk 0:03:00]}  b6 {[%clk 0:02:50]} 9. Nf3 {[%clk 0:02:59]}  Nge7 {[%clk 0:02:50]} 10. O-O {[%clk 0:02:58]}  h6 {[%clk 0:02:46]} 11. Bf4 {[%clk 0:02:48]}  O-O {[%clk 0:02:44]} 12. Qd2 {[%clk 0:02:48]}  Bf5 {[%clk 0:02:11]} 13. Rfe1 {[%clk 0:02:33]}  Bxd3 {[%clk 0:02:08]} 14. Qxd3 {[%clk 0:02:31]}  Qd7 {[%clk 0:02:04]} 15. h3 {[%clk 0:01:48]}  Rfe8 {[%clk 0:02:01]} 16. Nh2 {[%clk 0:01:42]}  Na5 {[%clk 0:01:51]} 17. Ng4 {[%clk 0:01:42]}  Nec6 {[%clk 0:01:03]} 18. Bxh6 {[%clk 0:01:30]}  f5 {[%clk 0:01:03]} 19. Ne3 {[%clk 0:01:17]}  gxh6 {[%clk 0:00:57]} 20. Nxf5 {[%clk 0:01:18]}  Qh7 {[%clk 0:00:46]} 21. Qf3 {[%clk 0:01:11]}  Kh8 {[%clk 0:00:28]} 22. Qxd5 {[%clk 0:01:09]}  Rf8 {[%clk 0:00:27]} 23. Ne3 {[%clk 0:00:19]}  Rad8 {[%clk 0:00:22]} 24. Qh5 {[%clk 0:00:18]}  Ne7 {[%clk 0:00:18]} 25. Ng4 {[%clk 0:00:16]}  Rd5 {[%clk 0:00:13]} 26. Qh4 {[%clk 0:00:09]}  Nf5 {[%clk 0:00:13]} 27. Qh5 {[%clk 0:00:04]}  Nc4 {[%clk 0:00:13]} 28. Re8 {[%clk 0:00:03]}  Rd8 {[%clk 0:00:11]} 29. Nf6 {[%clk 0:00:03]}  Ng7 {[%clk 0:00:10]} 30. Rxf8+ {[%clk 0:00:02]}  Rxf8 {[%clk 0:00:09]} 31. Nxh7 {[%clk 0:00:02]}  Nxh5 {[%clk 0:00:10]} 32. Nxf8 {[%clk 0:00:03]}  Nxa3 {[%clk 0:00:10]} 33. Re1 {[%clk 0:00:03]}  Nb5 {[%clk 0:00:10]} 34. Re7 {[%clk 0:00:03]}  Nxc3 {[%clk 0:00:10]} 35. Rxc7 {[%clk 0:00:03]}  Ne2+ {[%clk 0:00:10]} 36. Kf1 {[%clk 0:00:03]}  Nxd4 {[%clk 0:00:11]} 37. c3 {[%clk 0:00:03]}  Nb5 {[%clk 0:00:10]} 38. Rb7 {[%clk 0:00:02]}  Nxc3 {[%clk 0:00:10]} 39. Ng6+ {[%clk 0:00:02]}  Kg8 {[%clk 0:00:10]} 40. Rxa7 {[%clk 0:00:03]}  Nf6 {[%clk 0:00:10]} 41. Rb7 {[%clk 0:00:03]}  Ncd5 {[%clk 0:00:10]} 42. Ne7+ {[%clk 0:00:03]}  Nxe7 {[%clk 0:00:10]} 43. Rxe7 {[%clk 0:00:04]}  Kf8 {[%clk 0:00:10]} 44. Rb7 {[%clk 0:00:04]}  Nd5 {[%clk 0:00:11]} 45. g4 {[%clk 0:00:04]}  Nf4 {[%clk 0:00:10]} 46. Rxb6 {[%clk 0:00:03]}  Nxh3 {[%clk 0:00:11]} 47. Rxh6 {[%clk 0:00:04]}  Ng5 {[%clk 0:00:12]} 48. Rg6 {[%clk 0:00:04]}  Ne4 {[%clk 0:00:11]} 49. f3 {[%clk 0:00:04]}  Nc3 {[%clk 0:00:11]} 50. Kf2 {[%clk 0:00:04]}  Nd5 {[%clk 0:00:12]} 51. Rd6 {[%clk 0:00:04]} 1-0


[Site "https://www.chess.com"]

[Event "Titled Tuesday Blitz May 03 Late 2022"]
[White "Tang, Andrew"]
[Black "Kollars, Dmitrij"]
[WhiteFideId "2059630"]
[BlackFideId "12909572"]
[WhiteElo "2584"]
[BlackElo "2584"]
[Result "1-0"]
[Round "08"]
[TimeControl "180+1"]
[Date "2022.05.03"]
[WhiteClock "0:00:25"]
[BlackClock "0:00:05"]

1. d4 {[%clk 0:03:00]}  Nf6 {[%clk 0:02:57]} 2. c4 {[%clk 0:02:55]}  e6 {[%clk 0:02:57]} 3. Nc3 {[%clk 0:02:55]}  Bb4 {[%clk 0:02:47]} 4. Qc2 {[%clk 0:02:55]}  d5 {[%clk 0:02:48]} 5. cxd5 {[%clk 0:02:55]}  Qxd5 {[%clk 0:02:47]} 6. Nf3 {[%clk 0:02:56]}  Qf5 {[%clk 0:02:47]} 7. Qb3 {[%clk 0:02:56]}  Nc6 {[%clk 0:02:46]} 8. Bd2 {[%clk 0:02:57]}  a5 {[%clk 0:02:44]} 9. a3 {[%clk 0:02:57]}  a4 {[%clk 0:02:40]} 10. Qc4 {[%clk 0:02:57]}  Bxc3 {[%clk 0:02:38]} 11. Bxc3 {[%clk 0:02:58]}  O-O {[%clk 0:02:30]} 12. e3 {[%clk 0:02:59]}  Bd7 {[%clk 0:02:17]} 13. Bd3 {[%clk 0:02:53]}  Qh5 {[%clk 0:02:17]} 14. O-O {[%clk 0:02:48]}  Rfb8 {[%clk 0:01:58]} 15. Be2 {[%clk 0:02:29]}  Qf5 {[%clk 0:01:51]} 16. Qd3 {[%clk 0:02:18]}  b5 {[%clk 0:01:35]} 17. Rfc1 {[%clk 0:02:13]}  b4 {[%clk 0:01:27]} 18. Be1 {[%clk 0:01:51]}  bxa3 {[%clk 0:01:15]} 19. Qxa3 {[%clk 0:01:34]}  h6 {[%clk 0:00:53]} 20. Rc5 {[%clk 0:01:34]}  Nd5 {[%clk 0:00:45]} 21. Bd3 {[%clk 0:01:29]}  Qf6 {[%clk 0:00:45]} 22. Be4 {[%clk 0:01:24]}  Qd8 {[%clk 0:00:35]} 23. Rac1 {[%clk 0:01:23]}  Rb3 {[%clk 0:00:35]} 24. Qa2 {[%clk 0:01:20]}  Nce7 {[%clk 0:00:35]} 25. Ne5 {[%clk 0:01:19]}  Rab8 {[%clk 0:00:35]} 26. Nc4 {[%clk 0:01:09]}  Be8 {[%clk 0:00:30]} 27. Bc2 {[%clk 0:01:08]}  R3b7 {[%clk 0:00:28]} 28. Bxa4 {[%clk 0:01:04]}  Ra8 {[%clk 0:00:28]} 29. Na5 {[%clk 0:01:01]}  Rba7 {[%clk 0:00:23]} 30. Bxe8 {[%clk 0:01:00]}  Qxe8 {[%clk 0:00:24]} 31. b4 {[%clk 0:00:58]}  Rb8 {[%clk 0:00:23]} 32. Qa3 {[%clk 0:00:57]}  Ra6 {[%clk 0:00:13]} 33. e4 {[%clk 0:00:54]}  Nf6 {[%clk 0:00:13]} 34. Qd3 {[%clk 0:00:52]}  Ra7 {[%clk 0:00:08]} 35. Rxc7 {[%clk 0:00:52]}  Rxc7 {[%clk 0:00:08]} 36. Rxc7 {[%clk 0:00:52]}  Qd8 {[%clk 0:00:08]} 37. Rc1 {[%clk 0:00:48]}  Qd7 {[%clk 0:00:07]} 38. h3 {[%clk 0:00:47]}  Qa4 {[%clk 0:00:06]} 39. Bd2 {[%clk 0:00:41]}  Ng6 {[%clk 0:00:06]} 40. Nc6 {[%clk 0:00:39]}  Ra8 {[%clk 0:00:04]} 41. b5 {[%clk 0:00:38]}  Qa2 {[%clk 0:00:02]} 42. b6 {[%clk 0:00:37]}  Ra3 {[%clk 0:00:02]} 43. Qc2 {[%clk 0:00:34]}  Qxc2 {[%clk 0:00:03]} 44. Rxc2 {[%clk 0:00:35]}  Rb3 {[%clk 0:00:03]} 45. Bb4 {[%clk 0:00:34]}  Rb1+ {[%clk 0:00:02]} 46. Kh2 {[%clk 0:00:34]}  Nd7 {[%clk 0:00:03]} 47. b7 {[%clk 0:00:34]}  Nf4 {[%clk 0:00:03]} 48. Ra2 {[%clk 0:00:31]}  Nd3 {[%clk 0:00:03]} 49. Ra8+ {[%clk 0:00:31]}  Kh7 {[%clk 0:00:04]} 50. Rd8 {[%clk 0:00:30]}  Nxb4 {[%clk 0:00:04]} 51. Nxb4 {[%clk 0:00:30]}  Rxb4 {[%clk 0:00:05]} 52. Rxd7 {[%clk 0:00:31]}  Kg6 {[%clk 0:00:06]} 53. Kg3 {[%clk 0:00:31]}  f5 {[%clk 0:00:06]} 54. Kf4 {[%clk 0:00:30]}  Kf6 {[%clk 0:00:06]} 55. e5+ {[%clk 0:00:29]}  Kg6 {[%clk 0:00:06]} 56. Ke3 {[%clk 0:00:29]}  Kg5 {[%clk 0:00:05]} 57. Rxg7+ {[%clk 0:00:29]}  Kh4 {[%clk 0:00:05]} 58. Rh7 {[%clk 0:00:28]}  h5 {[%clk 0:00:05]} 59. Kd3 {[%clk 0:00:28]}  f4 {[%clk 0:00:05]} 60. Kc3 {[%clk 0:00:27]}  Rb1 {[%clk 0:00:05]} 61. Kc4 {[%clk 0:00:27]}  f3 {[%clk 0:00:06]} 62. gxf3 {[%clk 0:00:26]}  Kg5 {[%clk 0:00:04]} 63. Kc5 {[%clk 0:00:24]}  Kg6 {[%clk 0:00:05]} 64. Rc7 {[%clk 0:00:25]} 1-0


[Site "https://www.chess.com"]

[Event "Titled Tuesday Blitz May 03 Late 2022"]
[White "Tristan, Leonardo"]
[Black "Bortnyk, Olexandr"]
[WhiteFideId "113816"]
[BlackFideId "14120828"]
[WhiteElo "2404"]
[BlackElo "2723"]
[Result "0-1"]
[Round "08"]
[TimeControl "180+1"]
[Date "2022.05.03"]
[WhiteClock "0:00:02"]
[BlackClock "0:00:28"]

1. d4 {[%clk 0:03:00]}  d6 {[%clk 0:02:57]} 2. e4 {[%clk 0:03:00]}  Nf6 {[%clk 0:02:51]} 3. Nc3 {[%clk 0:02:59]}  Nbd7 {[%clk 0:02:48]} 4. Nf3 {[%clk 0:02:59]}  e5 {[%clk 0:02:48]} 5. Bc4 {[%clk 0:02:59]}  Be7 {[%clk 0:02:48]} 6. O-O {[%clk 0:03:00]}  c6 {[%clk 0:02:47]} 7. a4 {[%clk 0:03:00]}  h6 {[%clk 0:02:47]} 8. Re1 {[%clk 0:02:59]}  Qc7 {[%clk 0:02:48]} 9. Ba2 {[%clk 0:02:57]}  g5 {[%clk 0:02:47]} 10. d5 {[%clk 0:02:45]}  Nf8 {[%clk 0:02:46]} 11. a5 {[%clk 0:02:36]}  c5 {[%clk 0:02:41]} 12. a6 {[%clk 0:02:30]}  bxa6 {[%clk 0:02:39]} 13. Bc4 {[%clk 0:02:29]}  Ng6 {[%clk 0:02:38]} 14. Bxa6 {[%clk 0:02:28]}  Bg4 {[%clk 0:02:37]} 15. Be2 {[%clk 0:02:26]}  Nf4 {[%clk 0:02:36]} 16. Bxf4 {[%clk 0:02:25]}  gxf4 {[%clk 0:02:37]} 17. Nd2 {[%clk 0:02:26]}  Rg8 {[%clk 0:02:32]} 18. Bxg4 {[%clk 0:02:24]}  Nxg4 {[%clk 0:02:32]} 19. Qf3 {[%clk 0:02:13]}  Rb8 {[%clk 0:02:23]} 20. Nc4 {[%clk 0:02:13]}  Kf8 {[%clk 0:02:15]} 21. Ra6 {[%clk 0:02:12]}  Rg6 {[%clk 0:02:06]} 22. Rea1 {[%clk 0:02:11]}  Bh4 {[%clk 0:02:01]} 23. Rxa7 {[%clk 0:01:55]}  Qd8 {[%clk 0:01:37]} 24. g3 {[%clk 0:01:50]}  Qf6 {[%clk 0:01:16]} 25. gxh4 {[%clk 0:00:13]}  Qxh4 {[%clk 0:01:01]} 26. h3 {[%clk 0:00:13]}  Nxf2+ {[%clk 0:00:55]} 27. Kf1 {[%clk 0:00:11]}  Nxh3 {[%clk 0:00:54]} 28. Ne2 {[%clk 0:00:12]}  Ng5 {[%clk 0:00:50]} 29. Qf2 {[%clk 0:00:11]}  Qh1+ {[%clk 0:00:49]} 30. Qg1 {[%clk 0:00:10]}  Qxe4 {[%clk 0:00:45]} 31. b3 {[%clk 0:00:11]}  Nh3 {[%clk 0:00:32]} 32. Qh2 {[%clk 0:00:06]}  Qf3+ {[%clk 0:00:27]} 33. Ke1 {[%clk 0:00:06]}  Rg2 {[%clk 0:00:28]} 34. Nxd6 {[%clk 0:00:02]}  Rxh2 {[%clk 0:00:27]} 35. Rxf7+ {[%clk 0:00:02]}  Kg8 {[%clk 0:00:28]} 36. Rg7+ {[%clk 0:00:02]}  Kxg7 {[%clk 0:00:28]} 0-1


[Site "https://www.chess.com"]

[Event "Titled Tuesday Blitz May 03 Late 2022"]
[White "Vovk, Orest"]
[Black "Smail, Benedict"]
[WhiteFideId "14113490"]
[BlackFideId "2050480"]
[WhiteElo "2203"]
[BlackElo "2070"]
[Result "1-0"]
[Round "08"]
[TimeControl "180+1"]
[Date "2022.05.03"]
[WhiteClock "0:01:37"]
[BlackClock "0:00:20"]

1. h4 {[%clk 0:02:58]}  d5 {[%clk 0:02:59]} 2. h5 {[%clk 0:02:59]}  e5 {[%clk 0:02:58]} 3. h6 {[%clk 0:02:56]}  Nxh6 {[%clk 0:02:57]} 4. d4 {[%clk 0:02:57]}  e4 {[%clk 0:02:54]} 5. Bxh6 {[%clk 0:02:57]}  gxh6 {[%clk 0:02:55]} 6. e3 {[%clk 0:02:58]}  Be6 {[%clk 0:02:51]} 7. c4 {[%clk 0:02:58]}  c6 {[%clk 0:02:48]} 8. Qb3 {[%clk 0:02:58]}  Qb6 {[%clk 0:02:47]} 9. Nc3 {[%clk 0:02:58]}  Nd7 {[%clk 0:02:41]} 10. Rh5 {[%clk 0:02:57]}  Bg4 {[%clk 0:02:30]} 11. Rh4 {[%clk 0:02:54]}  Be6 {[%clk 0:02:24]} 12. cxd5 {[%clk 0:02:54]}  Qxb3 {[%clk 0:02:17]} 13. axb3 {[%clk 0:02:53]}  cxd5 {[%clk 0:02:17]} 14. Bb5 {[%clk 0:02:52]}  Bb4 {[%clk 0:02:04]} 15. Rxh6 {[%clk 0:02:44]}  O-O {[%clk 0:02:01]} 16. Rxe6 {[%clk 0:02:41]}  fxe6 {[%clk 0:02:00]} 17. Bxd7 {[%clk 0:02:41]}  Rf6 {[%clk 0:01:59]} 18. Ne2 {[%clk 0:02:38]}  Rd8 {[%clk 0:01:49]} 19. Bb5 {[%clk 0:02:35]}  a6 {[%clk 0:01:48]} 20. Bxa6 {[%clk 0:02:34]}  bxa6 {[%clk 0:01:49]} 21. Rxa6 {[%clk 0:02:34]}  Rdf8 {[%clk 0:01:45]} 22. Nf4 {[%clk 0:02:33]}  Kf7 {[%clk 0:01:31]} 23. Ra7+ {[%clk 0:02:31]}  Kg8 {[%clk 0:01:31]} 24. Ke2 {[%clk 0:02:30]}  Rb8 {[%clk 0:01:22]} 25. Ra6 {[%clk 0:02:13]}  Kf7 {[%clk 0:01:16]} 26. Na4 {[%clk 0:02:08]}  Bf8 {[%clk 0:01:02]} 27. Ra7+ {[%clk 0:02:06]}  Kg8 {[%clk 0:01:00]} 28. Nc5 {[%clk 0:01:59]}  Bxc5 {[%clk 0:01:00]} 29. dxc5 {[%clk 0:01:59]}  Rxb3 {[%clk 0:01:00]} 30. c6 {[%clk 0:01:59]}  Rxb2+ {[%clk 0:01:00]} 31. Kd1 {[%clk 0:01:59]}  Rh6 {[%clk 0:00:59]} 32. Nh3 {[%clk 0:01:53]}  Rb8 {[%clk 0:00:45]} 33. Rd7 {[%clk 0:01:45]}  Rc8 {[%clk 0:00:25]} 34. c7 {[%clk 0:01:45]}  Rf6 {[%clk 0:00:25]} 35. Nf4 {[%clk 0:01:39]}  Rf7 {[%clk 0:00:24]} 36. Rd8+ {[%clk 0:01:38]}  Rf8 {[%clk 0:00:25]} 37. Nxe6 {[%clk 0:01:38]}  Rxc7 {[%clk 0:00:20]} 38. Rxf8# {[%clk 0:01:37]} 1-0


[Site "https://www.chess.com"]